fUST/lending_fUST_20250314
["ID","MTS","AMOUNT","RATE_DAILY","PERIOD"]
[356091625,1741894253921,-500.0,0.00014246,2]
[356091626,1741894253930,-500.0,0.00014246,2]
[356091627,1741894253940,-500.0,0.00014246,2]
[356091628,1741894253950,-500.0,0.00014246,2]
[356091629,1741894253959,-500.0,0.00014246,2]
[356091630,1741894253968,-500.0,0.00014246,2]
[356091631,1741894253978,-537.02400661,0.00014246,2]
[356091632,1741894253988,-500.0,0.00014246,2]
[356091633,1741894253998,-500.0,0.00014246,2]
[356091634,1741894254007,-500.0,0.00014246,2]
[356091635,1741894254017,-500.0,0.00014246,2]
[356091636,1741894254027,-500.0,0.00014246,2]
[356091637,1741894254039,-500.0,0.00014246,2]
[356091638,1741894254049,-500.0,0.00014246,2]
[356091639,1741894254058,-500.0,0.00014246,2]
[356091640,1741894254068,-500.0,0.00014246,2]
[356091641,1741894254079,-500.0,0.00014246,2]
[356091642,1741894254089,-500.0,0.00014246,2]
[356091643,1741894254099,-500.0,0.00014246,2]
[356091644,1741894254108,-500.0,0.00014246,2]
[356091645,1741894254118,-500.0,0.00014246,2]
[356091646,1741894254128,-500.0,0.00014246,2]
[356091647,1741894254138,-500.0,0.00014246,2]
[356091648,1741894254148,-525.64,0.00014246,2]
[356091649,1741894254157,-500.0,0.00014246,2]
[356091650,1741894254167,-500.0,0.00014246,2]
[356091651,1741894254180,-500.0,0.00014246,2]
[356091652,1741894254190,-243.98961006,0.00014246,2]
[356091653,1741894254201,-1091.78,0.00014246,2]
[356091654,1741894254214,-500.0,0.00014246,2]
[356091655,1741894254224,-1064.34,0.00014246,2]
[356091656,1741894254234,-605.13,0.00014246,2]
[356091657,1741894254243,-500.0,0.00014246,2]
[356091658,1741894254253,-500.0,0.00014246,2]
[356091659,1741894254263,-500.0,0.00014246,2]
[356091660,1741894254273,-500.0,0.00014246,2]
[356091661,1741894254282,-500.0,0.00014246,2]
[356091662,1741894254293,-946.51,0.00014246,2]
[356091663,1741894254306,-500.0,0.00014246,2]
[356091664,1741894254315,-1000.0,0.00014246,2]
[356091665,1741894254326,-500.0,0.00014246,2]
[356091666,1741894254336,-500.0,0.00014246,2]
[356091667,1741894254346,-500.0,0.00014246,2]
[356091668,1741894254356,-500.0,0.00014246,2]
[356091669,1741894254366,-500.0,0.00014246,2]
[356091670,1741894254377,-500.0,0.00014246,2]
[356091671,1741894254387,-259.69886279,0.00014246,2]
[356091672,1741894254396,-500.0,0.00014246,2]
[356091673,1741894254405,-500.0,0.00014246,2]
[356091674,1741894254415,-500.0,0.00014246,2]
[356091675,1741894254425,-500.0,0.00014246,2]
[356091676,1741894254435,-500.0,0.00014246,2]
[356091677,1741894254444,-552.20510394,0.00014246,2]
[356091678,1741894254454,-2429.74,0.00014246,2]
[356091679,1741894254464,-500.0,0.00014246,2]
[356091680,1741894254473,-1225.1,0.00014246,2]
[356091681,1741894254483,-500.0,0.00014246,2]
[356091682,1741894254492,-915.6,0.00014246,2]
[356091683,1741894254502,-500.0,0.00014246,2]
[356091684,1741894254511,-500.0,0.00014246,2]
[356091685,1741894254521,-500.0,0.00014246,2]
[356091686,1741894254530,-500.0,0.00014246,2]
[356091687,1741894254540,-500.0,0.00014246,2]
[356091688,1741894254549,-500.0,0.00014246,2]
[356091689,1741894254559,-500.0,0.00014246,2]
[356091690,1741894254568,-500.0,0.00014246,2]
[356091691,1741894254579,-500.0,0.00014246,2]
[356091692,1741894254589,-1567.01,0.00014246,2]
[356091693,1741894254598,-2385.32,0.00014246,2]
[356091694,1741894254607,-500.0,0.00014246,2]
[356091695,1741894254617,-799.23,0.00014246,2]
[356091696,1741894254626,-500.0,0.00014246,2]
[356091697,1741894254635,-500.0,0.00014246,2]
[356091698,1741894254645,-500.0,0.00014246,2]
[356091699,1741894254654,-500.0,0.00014246,2]
[356091700,1741894254664,-2314.3,0.00014246,2]
[356091701,1741894254673,-961.15,0.00014246,2]
[356091702,1741894254683,-3367.72,0.00014246,2]
[356091703,1741894254692,-500.0,0.00014246,2]
[356091704,1741894254702,-523.42576139,0.00014246,2]
[356091705,1741894254711,-500.0,0.00014246,2]
[356091706,1741894254721,-500.0,0.00014246,2]
[356091707,1741894254731,-500.0,0.00014246,2]
[356091708,1741894254740,-500.0,0.00014246,2]
[356091709,1741894254750,-3655.05,0.00014246,2]
[356091710,1741894254759,-2628.92,0.00014246,2]
[356091711,1741894254769,-4239.54,0.00014246,2]
[356091712,1741894254778,-855.11,0.00014246,2]
[356091713,1741894254787,-500.0,0.00014246,2]
[356091714,1741894254797,-844.26,0.00014246,2]
[356091715,1741894254806,-500.0,0.00014246,2]
[356091716,1741894254816,-500.0,0.00014246,2]
[356091717,1741894254827,-500.0,0.00014246,2]
[356091718,1741894254837,-500.0,0.00014246,2]
[356091719,1741894254847,-500.0,0.00014246,2]
[356091720,1741894254856,-500.0,0.00014246,2]
[356091721,1741894254865,-14729.94,0.00014246,2]
[356091722,1741894254875,-1094.41,0.00014246,2]
[356091723,1741894254884,-2019.8,0.00014246,2]
[356091724,1741894254894,-1688.66,0.00014246,2]
[356091725,1741894254904,-500.0,0.00014246,2]
[356091726,1741894254914,-500.0,0.00014246,2]
[356091727,1741894254923,-2887.85,0.00014246,2]
[356091728,1741894254932,-500.0,0.00014246,2]
[356091729,1741894254942,-883.44,0.00014246,2]
[356091730,1741894254951,-5717.07,0.00014246,2]
[356091731,1741894254961,-500.0,0.00014246,2]
[356091732,1741894254971,-539.84168242,0.00014246,2]
[356091733,1741894254980,-500.0,0.00014246,2]
[356091734,1741894254989,-500.0,0.00014246,2]
[356091735,1741894254999,-500.0,0.00014246,2]
[356091736,1741894255008,-500.0,0.00014246,2]
[356091737,1741894255018,-500.0,0.00014246,2]
[356091738,1741894255028,-867.4,0.00014246,2]
[356091739,1741894255037,-1631.9,0.00014246,2]
[356091740,1741894255047,-693.74,0.00014246,2]
[356091741,1741894255056,-500.0,0.00014246,2]
[356091742,1741894255066,-500.0,0.00014246,2]
[356091743,1741894255075,-500.0,0.00014246,2]
[356091744,1741894255084,-500.0,0.00014246,2]
[356091745,1741894255094,-500.0,0.00014246,2]
[356091746,1741894255104,-500.0,0.00014246,2]
[356091747,1741894255113,-538.45,0.00014246,2]
[356091748,1741894255123,-500.0,0.00014246,2]
[356091749,1741894255133,-500.0,0.00014246,2]
[356091750,1741894255142,-500.0,0.00014246,2]
[356091751,1741894255151,-500.0,0.00014246,2]
[356091752,1741894255161,-500.0,0.00014246,2]
[356091753,1741894255170,-500.0,0.00014246,2]
[356091754,1741894255180,-1291.61,0.00014246,2]
[356091755,1741894255190,-1020.5,0.00014246,2]
[356091756,1741894255199,-500.0,0.00014246,2]
[356091757,1741894255208,-500.0,0.00014246,2]
[356091758,1741894255218,-500.0,0.00014246,2]
[356091759,1741894255228,-500.0,0.00014246,2]
[356091760,1741894255238,-500.0,0.00014246,2]
[356091761,1741894255248,-500.0,0.00014246,2]
[356091762,1741894255258,-500.0,0.00014246,2]
[356091763,1741894255267,-500.0,0.00014246,4]
[356091764,1741894255279,-500.0,0.00014246,2]
[356091765,1741894255289,-1085.26,0.00014246,2]
[356091766,1741894255304,-500.0,0.00014246,2]
[356091767,1741894255313,-500.0,0.00014246,2]
[356091768,1741894255323,-500.0,0.00014246,2]
[356091769,1741894255334,-500.0,0.00014246,2]
[356091770,1741894255345,-500.0,0.00014246,2]
[356091771,1741894255355,-500.0,0.00014246,2]
[356091772,1741894255364,-500.0,0.00014246,2]
[356091773,1741894255374,-829.71,0.00014246,2]
[356091774,1741894255384,-3663.51,0.00014246,2]
[356091775,1741894255395,-435.80487544,0.00014246,2]
[356091776,1741894255404,-500.0,0.00014246,2]
[356091777,1741894255414,-500.0,0.00014246,2]
[356091778,1741894255423,-766.23,0.00014246,2]
[356091779,1741894255433,-560.51,0.00014246,2]
[356091780,1741894255442,-500.0,0.00014246,2]
[356091781,1741894255452,-1253.74,0.00014246,2]
[356091782,1741894255462,-1603.92,0.00014246,2]
[356091783,1741894255471,-5038.82,0.00014246,2]
[356091784,1741894255480,-500.0,0.00014246,2]
[356091785,1741894255490,-3218.17,0.00014246,2]
[356091786,1741894255499,-500.0,0.00014246,2]
[356091787,1741894255509,-500.0,0.00014246,2]
[356091788,1741894255519,-500.0,0.00014246,2]
[356091789,1741894255528,-581.31687647,0.00014246,2]
[356091790,1741894255538,-500.0,0.00014246,2]
[356091791,1741894255547,-1491.96,0.00014246,2]
[356091792,1741894255556,-500.0,0.00014246,2]
[356091793,1741894255708,-500.0,0.00014246,2]
[356091794,1741894255718,-2264.46,0.00014246,2]
[356091795,1741894255728,-1269.71,0.00014246,2]
[356091796,1741894255738,-500.0,0.00014246,2]
[356091797,1741894255747,-558.28026731,0.00014246,2]
[356091798,1741894255757,-500.0,0.00014246,2]
[356091799,1741894255766,-500.0,0.00014246,2]
[356091800,1741894255775,-500.0,0.00014246,2]
[356091801,1741894255785,-500.0,0.00014246,2]
[356091802,1741894255795,-1760.7,0.00014246,2]
[356091803,1741894255804,-500.0,0.00014246,2]
[356091804,1741894255815,-562.34363256,0.00014246,2]
[356091805,1741894255824,-2664.11,0.00014246,2]
[356091806,1741894255836,-500.0,0.00014246,2]
[356091807,1741894255845,-500.0,0.00014246,2]
[356091808,1741894255855,-500.0,0.00014246,2]
[356091809,1741894255865,-500.0,0.00014246,2]
[356091810,1741894255875,-200.330747,0.00014246,2]
[356091811,1741894255884,-200.330747,0.00014246,2]
[356091812,1741894255894,-500.0,0.00014246,2]
[356091813,1741894255904,-500.0,0.00014246,2]
[356091814,1741894255914,-500.0,0.00014246,2]
[356091815,1741894255923,-200.330747,0.00014246,2]
[356091816,1741894255933,-200.330747,0.00014246,2]
[356091817,1741894255943,-500.0,0.00014246,2]
[356091818,1741894255952,-980.82,0.00014246,2]
[356091819,1741894255961,-2678.96,0.00014246,2]
[356091820,1741894255971,-3489.38,0.00014246,2]
[356091821,1741894255981,-535.53,0.00014246,2]
[356091822,1741894255991,-2545.77,0.00014246,2]
[356091823,1741894256000,-500.0,0.00014246,2]
[356091824,1741894256010,-500.0,0.00014246,2]
[356091825,1741894256020,-5671.57,0.00014246,2]
[356091826,1741894256031,-500.0,0.00014246,2]
[356091827,1741894256041,-500.0,0.00014246,2]
[356091828,1741894256051,-500.0,0.00014246,2]
[356091829,1741894256060,-151.0,0.00014246,2]
[356091830,1741894256070,-500.0,0.00014246,2]
[356091831,1741894256081,-500.0,0.00014246,2]
[356091832,1741894256090,-661.91,0.00014246,2]
[356091833,1741894256100,-500.0,0.00014246,2]
[356091834,1741894256110,-1625.38,0.00014246,2]
[356091835,1741894256119,-500.0,0.00014246,2]
[356091836,1741894256129,-500.0,0.00014246,2]
[356091837,1741894256139,-1103.31,0.00014246,2]
[356091838,1741894256149,-500.0,0.00014246,2]
[356091839,1741894256159,-569.30290069,0.00014246,2]
[356091840,1741894256168,-500.0,0.00014246,2]
[356091841,1741894256178,-500.0,0.00014246,2]
[356091842,1741894256187,-209027.12,0.00014246,2]
[356091843,1741894256197,-500.0,0.00014246,2]
[356091844,1741894256206,-500.0,0.00014246,2]
[356091845,1741894256215,-500.0,0.00014246,2]
[356091846,1741894256225,-500.0,0.00014246,2]
[356091847,1741894256234,-1687.29,0.00014246,2]
[356091848,1741894256245,-1217.41,0.00014246,2]
[356091849,1741894256254,-500.0,0.00014246,2]
[356091850,1741894256263,-732.04,0.00014246,2]
[356091851,1741894256273,-500.0,0.00014246,2]
[356091852,1741894256283,-13853.85,0.00014246,2]
[356091853,1741894256293,-500.0,0.00014246,2]
[356091854,1741894256304,-1965.87,0.00014246,2]
[356091855,1741894256314,-19868.93,0.00014246,2]
[356091856,1741894256323,-4290.07,0.00014246,2]
[356091857,1741894256334,-500.0,0.00014246,2]
[356091858,1741894256345,-500.0,0.00014246,2]
[356091859,1741894256354,-641.75,0.00014246,2]
[356091860,1741894256364,-3029.39,0.00014246,2]
[356091861,1741894256373,-500.0,0.00014246,2]
[356091862,1741894256384,-2172.87,0.00014246,2]
[356091863,1741894256394,-500.0,0.00014246,2]
[356091864,1741894256403,-500.0,0.00014246,2]
[356091865,1741894256413,-500.0,0.00014246,2]
[356091866,1741894256422,-500.0,0.00014246,2]
[356091867,1741894256432,-500.0,0.00014246,2]
[356091868,1741894256441,-500.0,0.00014246,2]
[356091869,1741894256450,-500.0,0.00014246,2]
[356091870,1741894256460,-537.19045431,0.00014246,2]
[356091871,1741894256469,-500.0,0.00014246,2]
[356091872,1741894256478,-500.0,0.00014246,2]
[356091873,1741894256487,-1889.44,0.00014246,2]
[356091874,1741894256496,-500.0,0.00014246,2]
[356091875,1741894256506,-500.0,0.00014246,2]
[356091876,1741894256515,-500.0,0.00014246,2]
[356091877,1741894256524,-500.0,0.00014246,2]
[356091878,1741894256534,-3244.72,0.00014246,2]
[356091879,1741894256544,-500.0,0.00014246,2]
[356091880,1741894256553,-500.0,0.00014246,2]
[356091881,1741894256564,-514.8,0.00014246,2]
[356091882,1741894256575,-500.0,0.00014246,2]
[356091883,1741894256586,-500.0,0.00014246,2]
[356091884,1741894256596,-500.0,0.00014246,2]
[356091885,1741894256605,-516.59,0.00014246,2]
[356091886,1741894256615,-500.0,0.00014246,2]
[356091887,1741894256625,-500.0,0.00014246,2]
[356091888,1741894256634,-500.0,0.00014246,2]
[356091889,1741894256644,-1053.85,0.00014246,2]
[356091890,1741894256654,-500.0,0.00014246,2]
[356091891,1741894256663,-500.0,0.00014246,2]
[356091892,1741894256673,-500.0,0.00014246,2]
[356091893,1741894256683,-2522.71,0.00014246,2]
[356091894,1741894256693,-500.0,0.00014246,2]
[356091895,1741894256702,-2188.06,0.00014246,2]
[356091896,1741894256712,-500.0,0.00014246,2]
[356091897,1741894256721,-500.0,0.00014246,2]
[356091898,1741894256730,-500.0,0.00014246,2]
[356091899,1741894256740,-9777.91,0.00014246,2]
[356091900,1741894256750,-8393.77,0.00014246,2]
[356091901,1741894256759,-500.0,0.00014246,2]
[356091902,1741894256769,-500.0,0.00014246,2]
[356091903,1741894256778,-500.0,0.00014246,2]
[356091904,1741894256788,-500.0,0.00014246,2]
[356091905,1741894256797,-500.0,0.00014246,2]
[356091906,1741894256807,-544.9684437,0.00014246,2]
[356091907,1741894256817,-500.0,0.00014246,2]
[356091908,1741894256826,-1528.57,0.00014246,2]
[356091909,1741894256838,-500.0,0.00014246,2]
[356091910,1741894256847,-3229.46,0.00014246,2]
[356091911,1741894256857,-500.0,0.00014246,2]
[356091912,1741894256866,-500.0,0.00014246,2]
[356091913,1741894256876,-500.0,0.00014246,2]
[356091914,1741894256885,-4560.46,0.00014246,2]
[356091915,1741894256894,-500.0,0.00014246,2]
[356091916,1741894256904,-500.0,0.00014246,2]
[356091917,1741894256914,-500.0,0.00014246,2]
[356091918,1741894256924,-991.05,0.00014246,2]
[356091919,1741894256934,-500.0,0.00014246,2]
[356091920,1741894256943,-200.24196273,0.00014246,2]
[356091921,1741894256953,-500.0,0.00014246,2]
[356091922,1741894256963,-500.0,0.00014246,2]
[356091923,1741894256972,-500.0,0.00014246,2]
[356091924,1741894256983,-500.0,0.00014246,2]
[356091925,1741894256992,-500.0,0.00014246,2]
[356091926,1741894257002,-668.0,0.00014246,2]
[356091927,1741894257011,-1094.29,0.00014246,2]
[356091928,1741894257021,-500.0,0.00014246,2]
[356091929,1741894257032,-500.0,0.00014246,2]
[356091930,1741894257042,-500.0,0.00014246,2]
[356091931,1741894257051,-500.0,0.00014246,2]
[356091932,1741894257061,-500.0,0.00014246,2]
[356091933,1741894257071,-1101.83,0.00014246,2]
[356091934,1741894257082,-500.0,0.00014246,2]
[356091935,1741894257092,-1356.48,0.00014246,2]
[356091936,1741894257102,-6281.11,0.00014246,2]
[356091937,1741894257112,-2180.55,0.00014246,2]
[356091938,1741894257121,-500.0,0.00014246,2]
[356091939,1741894257131,-500.0,0.00014246,2]
[356091940,1741894257141,-500.0,0.00014246,2]
[356091941,1741894257150,-617.69053668,0.00014246,2]
[356091942,1741894257159,-541.44690701,0.00014246,2]
[356091943,1741894257169,-1225.77,0.00014246,2]
[356091944,1741894257179,-500.0,0.00014246,2]
[356091945,1741894257188,-3824.86,0.00014246,2]
[356091946,1741894257198,-500.0,0.00014246,2]
[356091947,1741894257208,-500.0,0.00014246,2]
[356091948,1741894257217,-500.0,0.00014246,2]
[356091949,1741894257227,-500.0,0.00014246,2]
[356091950,1741894257236,-500.0,0.00014246,2]
[356091951,1741894257246,-500.0,0.00014246,2]
[356091952,1741894257256,-500.0,0.00014246,2]
[356091953,1741894257265,-500.0,0.00014246,2]
[356091954,1741894257276,-500.0,0.00014246,2]
[356091955,1741894257285,-610.74,0.00014246,2]
[356091956,1741894257296,-903.73,0.00014246,2]
[356091957,1741894257307,-500.0,0.00014246,2]
[356091958,1741894257317,-3624.01,0.00014246,2]
[356091959,1741894257330,-500.0,0.00014246,2]
[356091960,1741894257339,-500.0,0.00014246,2]
[356091961,1741894257350,-998.75,0.00014246,2]
[356091962,1741894257360,-500.0,0.00014246,2]
[356091963,1741894257370,-2647.29,0.00014246,2]
[356091964,1741894257380,-10382.85,0.00014246,2]
[356091965,1741894257390,-1110.54,0.00014246,2]
[356091966,1741894257399,-1762.61,0.00014246,2]
[356091967,1741894257409,-1041.84,0.00014246,2]
[356091968,1741894257419,-302.2904209,0.00014246,2]
[356091969,1741894257428,-565.16,0.00014246,2]
[356091970,1741894257437,-647.43,0.00014246,2]
[356091971,1741894257447,-500.0,0.00014246,2]
[356091972,1741894257457,-500.0,0.00014246,2]
[356091973,1741894257467,-801.16,0.00014246,2]
[356091974,1741894257477,-500.0,0.00014246,2]
[356091975,1741894257486,-606.89,0.00014246,2]
[356091976,1741894257496,-500.0,0.00014246,2]
[356091977,1741894257505,-500.0,0.00014246,2]
[356091978,1741894257515,-500.0,0.00014246,2]
[356091979,1741894257524,-151.0,0.00014246,2]
[356091980,1741894257534,-2366.07,0.00014246,2]
[356091981,1741894257544,-500.0,0.00014246,2]
[356091982,1741894257554,-501.23,0.00014246,2]
[356091983,1741894257564,-500.0,0.00014246,2]
[356091984,1741894257573,-500.0,0.00014246,2]
[356091985,1741894257585,-500.0,0.00014246,2]
[356091986,1741894257595,-500.0,0.00014246,2]
[356091987,1741894257604,-2060.16,0.00014246,2]
[356091988,1741894257614,-1000.61,0.00014246,2]
[356091989,1741894257623,-1243.28,0.00014246,2]
[356091990,1741894257759,-500.0,0.00014246,2]
[356091991,1741894257769,-635.67,0.00014246,2]
[356091992,1741894257778,-500.0,0.00014246,2]
[356091993,1741894257787,-1642.03,0.00014246,2]
[356091994,1741894257797,-500.0,0.00014246,2]
[356091995,1741894257807,-1491.71,0.00014246,2]
[356091996,1741894257816,-853.54,0.00014246,2]
[356091997,1741894257826,-500.0,0.00014246,2]
[356091998,1741894257837,-743.31,0.00014246,2]
[356091999,1741894257847,-8475.39,0.00014246,2]
[356092000,1741894257856,-1759.09,0.00014246,2]
[356092001,1741894257866,-1477.61,0.00014246,2]
[356092002,1741894257876,-2198.31,0.00014246,2]
[356092003,1741894257885,-1123.76,0.00014246,2]
[356092004,1741894257895,-500.0,0.00014246,2]
[356092005,1741894257904,-500.0,0.00014246,2]
[356092006,1741894257915,-500.0,0.00014246,2]
[356092007,1741894257924,-732.57,0.00014246,2]
[356092008,1741894257934,-500.0,0.00014246,2]
[356092009,1741894257944,-1157.73,0.00014246,2]
[356092010,1741894257954,-1043.48,0.00014246,2]
[356092011,1741894257963,-500.0,0.00014246,2]
[356092012,1741894257973,-500.0,0.00014246,2]
[356092013,1741894257983,-500.0,0.00014246,2]
[356092014,1741894257992,-8458.86,0.00014246,2]
[356092015,1741894258002,-500.0,0.00014246,2]
[356092016,1741894258012,-862.8569753,0.00014249,2]
[356092017,1741894258021,-151.0,0.0001425,2]
[356092018,1741894258032,-506.63538304,0.00014263,2]
[356092019,1741894258042,-500.0,0.00014273,2]
[356092020,1741894258051,-5420.55634881,0.000143,2]
[356092021,1741894258060,-5420.55634869,0.000143,2]
[356092022,1741894258070,-5420.55634869,0.000143,2]
[356092023,1741894258079,-894.78268339,0.00014304,2]
[356092024,1741894258088,-1616.0,0.00014347,2]
[356092025,1741894258098,-500.0,0.00014347,2]
[356092026,1741894258108,-297.183165,0.00014347,2]
[356092027,1741894258117,-184.76743283,0.00014356,2]
[356092028,1741894258127,-166.29068954,0.00014356,2]
[356092029,1741894258136,-184.76743283,0.00014356,2]
[356092030,1741894258146,-184.76743283,0.00014356,2]
[356092031,1741894258156,-927.88964268,0.00014359,2]
[356092032,1741894258165,-962.22155946,0.00014414,2]
[356092033,1741894258174,-5420.55634869,0.00014417,2]
[356092034,1741894258184,-420.0,0.00014436,2]
[356092035,1741894258194,-202.0,0.00014443,2]
[356092036,1741894258203,-997.82375716,0.00014469,2]
[356092037,1741894258212,-1616.0,0.00014484,2]
[356092038,1741894258222,-500.0,0.00014484,2]
[356092039,1741894258231,-465.00203871,0.00014494,2]
[356092040,1741894258241,-500.0,0.0001452,2]
[356092041,1741894258250,-194.94,0.0001452,2]
[356092042,1741894258260,-500.0,0.0001452,2]
[356092043,1741894258269,-954.95,0.0001452,2]
[356092044,1741894258278,-500.0,0.0001452,2]
[356092045,1741894258287,-505.9490212,0.0001452,2]
[356092046,1741894258297,-587.19,0.0001452,2]
[356092047,1741894258309,-500.0,0.0001452,2]
[356092048,1741894258319,-548.02874626,0.0001452,2]
[356092049,1741894258329,-500.0,0.0001452,2]
[356092050,1741894258338,-500.0,0.0001452,2]
[356092051,1741894258349,-500.0,0.0001452,2]
[356092052,1741894258358,-500.0,0.0001452,2]
[356092053,1741894258367,-500.0,0.0001452,2]
[356092054,1741894258377,-500.0,0.0001452,2]
[356092055,1741894258388,-500.0,0.0001452,2]
[356092056,1741894258398,-500.0,0.0001452,2]
[356092057,1741894258408,-500.0,0.0001452,2]
[356092058,1741894258418,-500.0,0.0001452,2]
[356092059,1741894258428,-151.0,0.0001452,2]
[356092060,1741894258437,-500.0,0.0001452,2]
[356092061,1741894258447,-500.0,0.0001452,2]
[356092062,1741894258456,-500.0,0.0001452,2]
[356092063,1741894258466,-500.0,0.0001452,2]
[356092064,1741894258475,-793.48,0.0001452,2]
[356092065,1741894258485,-500.0,0.0001452,2]
[356092066,1741894258495,-500.0,0.0001452,2]
[356092067,1741894258505,-500.0,0.0001452,2]
[356092068,1741894258515,-500.0,0.0001452,2]
[356092069,1741894258525,-500.0,0.0001452,2]
[356092070,1741894258535,-1322.9,0.0001452,2]
[356092071,1741894258544,-500.0,0.0001452,2]
[356092072,1741894258554,-846.12,0.0001452,2]
[356092073,1741894258563,-500.0,0.0001452,2]
[356092074,1741894258572,-500.0,0.0001452,2]
[356092075,1741894258582,-500.0,0.0001452,2]
[356092076,1741894258592,-500.0,0.0001452,2]
[356092077,1741894258601,-500.0,0.0001452,2]
[356092078,1741894258610,-500.0,0.0001452,2]
[356092079,1741894258620,-500.0,0.0001452,2]
[356092080,1741894258629,-563.56,0.0001452,2]
[356092081,1741894258639,-500.0,0.0001452,2]
[356092082,1741894258648,-500.0,0.0001452,2]
[356092083,1741894258658,-500.0,0.0001452,2]
[356092084,1741894258667,-500.0,0.0001452,2]
[356092085,1741894258677,-500.0,0.0001452,2]
[356092086,1741894258686,-500.0,0.0001452,2]
[356092087,1741894258695,-500.0,0.0001452,2]
[356092088,1741894258705,-500.0,0.0001452,2]
[356092089,1741894258714,-500.0,0.0001452,2]
[356092090,1741894258723,-500.0,0.0001452,2]
[356092091,1741894258733,-500.0,0.0001452,2]
[356092092,1741894258743,-500.0,0.0001452,2]
[356092093,1741894258752,-500.0,0.0001452,2]
[356092094,1741894258762,-778.09,0.0001452,2]
[356092095,1741894258772,-500.0,0.0001452,2]
[356092096,1741894258780,-521.01,0.0001452,2]
[356092097,1741894258790,-500.0,0.0001452,2]
[356092098,1741894258799,-500.0,0.0001452,2]
[356092099,1741894258808,-321.36863272,0.0001452,2]
[356092100,1741894258818,-500.0,0.0001452,2]
[356092101,1741894258827,-500.0,0.0001452,2]
[356092102,1741894258836,-500.0,0.0001452,2]
[356092103,1741894258846,-500.0,0.0001452,2]
[356092104,1741894258855,-500.0,0.0001452,2]
[356092105,1741894258865,-500.0,0.0001452,2]
[356092106,1741894258874,-500.0,0.0001452,2]
[356092107,1741894258884,-500.0,0.0001452,2]
[356092108,1741894258893,-500.0,0.0001452,2]
[356092109,1741894258903,-500.0,0.0001452,2]
[356092110,1741894258912,-500.0,0.0001452,2]
[356092111,1741894258922,-233.10965585,0.0001452,2]
[356092112,1741894258931,-500.0,0.0001452,2]
[356092113,1741894258941,-500.0,0.0001452,2]
[356092114,1741894258951,-500.0,0.0001452,2]
[356092115,1741894258960,-500.0,0.0001452,2]
[356092116,1741894258970,-500.0,0.0001452,2]
[356092117,1741894258979,-945.54,0.0001452,2]
[356092118,1741894258989,-1251.04,0.0001452,2]
[356092119,1741894258999,-500.0,0.0001452,2]
[356092120,1741894259009,-500.0,0.0001452,2]
[356092121,1741894259019,-500.0,0.0001452,2]
[356092122,1741894259028,-1614.53,0.0001452,2]
[356092123,1741894259038,-500.0,0.0001452,2]
[356092124,1741894259048,-500.0,0.0001452,2]